bitfinex/quotes_SOLUSD_20250129
["timestamp","ask_amount","ask_price","bid_price","bid_amount"]
[1738183318331,2.25098,234.89,234.88,0.03]
[1738183318632,2.37647,234.89,234.88,0.03]
[1738183319455,4.50507,234.89,234.73,0.6387609]
[1738183319653,4.50507,234.89,234.66,0.63889013]
[1738183319654,1.0,234.68,234.66,0.63889013]
[1738183319960,1.0,234.7,234.65,34.23202976]
[1738183320172,2.0,234.66,234.65,0.03]
[1738183320480,2.37647,234.66,234.65,0.03]
[1738183320652,3.01522693,234.66,234.65,0.03]
[1738183320855,2.88973693,234.66,234.65,0.03]
[1738183321052,1.63875693,234.66,234.65,0.03]
[1738183321267,1.0,234.66,234.65,0.03]
[1738183321469,5.14592693,234.66,234.65,0.03]
[1738183321778,3.01522693,234.66,234.65,0.03]
[1738183322086,0.25098,234.66,234.65,0.03]
[1738183322248,1.0,234.71,234.66,23.776884]
[1738183322452,1.0,234.69,234.66,23.776884]
[1738183322748,1.0,234.75,234.69,23.776884]
[1738183323065,1.25098,234.66,234.65,0.03]
[1738183323253,2.01522693,234.66,234.65,0.03]
[1738183323447,4.14592693,234.66,234.65,0.03]
[1738183323646,2.01522693,234.66,234.65,0.03]
[1738183324078,36.21725669,234.66,234.65,0.03]
[1738183324278,1.88973693,234.66,234.65,0.03]
[1738183324456,2.63875693,234.69,234.65,0.03]
[1738183324653,1.0,234.69,234.65,23.806884]
[1738183324873,2.63875693,234.72,234.65,23.806884]
[1738183325074,1.0,234.75,234.69,23.776884]
[1738183325277,1.0,234.68,234.65,0.03]
[1738183325652,0.12549,234.73,234.65,0.03]
[1738183325653,2.0,234.75,234.66,34.20202976]
[1738183325859,1.0,234.75,234.71,23.776884]
[1738183326054,2.0,234.71,234.66,34.20202976]
[1738183326275,1.25098,234.66,234.65,0.03]
[1738183326457,2.63875693,234.66,234.65,0.03]
[1738183326655,37.21725669,234.66,234.65,0.03]
[1738183327149,1.0,234.66,234.65,0.03]
[1738183327349,1.0,234.76,234.65,23.806884]
[1738183327651,21.0,234.79,234.72,34.20202976]
[1738183327851,1.0,234.7,234.66,34.20202976]
[1738183328049,0.25098,234.76,234.69,23.776884]
[1738183328279,0.25098,234.76,234.71,23.776884]
[1738183328492,1.0,234.71,234.66,34.20202976]
[1738183328779,1.0,234.71,234.67,23.776884]
[1738183328979,1.0,234.71,234.67,24.41598035]
[1738183329180,1.12549,234.78,234.71,23.776884]
[1738183329380,1.0,234.74,234.73,23.776884]
[1738183329550,0.63875693,234.8,234.73,23.776884]
[1738183329551,0.25098,234.78,234.73,28.036984]
[1738183329758,1.0,234.79,234.66,4.2614]
[1738183329759,1.0,234.7,234.66,4.2614]
[1738183329993,2.0,234.76,234.69,34.20202976]
[1738183330160,34.20202976,234.78,234.69,34.20202976]
[1738183330161,1.0,234.73,234.71,23.776884]
[1738183330378,1.0,234.75,234.71,23.776884]
[1738183330574,1.0,234.7,234.65,39.13252443]
[1738183330749,1.0,234.68,234.65,4.93049467]
[1738183330953,1.0,234.66,234.65,0.03]
[1738183331252,2.0,234.66,234.65,0.03]
[1738183331459,36.20202976,234.66,234.65,0.03]
[1738183331660,1.0,234.66,234.65,0.03]
[1738183331871,2.0,234.72,234.65,34.23202976]
[1738183332187,1.0,234.81,234.72,23.776884]
[1738183332356,2.0,234.84,234.76,23.776884]
[1738183332678,1.0,234.79,234.74,34.20202976]
[1738183332848,2.0,234.73,234.68,34.20202976]
[1738183333048,1.0,234.66,234.65,0.03]
[1738183333370,1.0,234.73,234.66,23.776884]
[1738183333555,1.63875693,234.73,234.66,28.038284]
[1738183333876,10.6446,234.86,234.7,23.776884]
[1738183333877,1.0,234.77,234.7,23.776884]
[1738183334074,12.6422,234.92,234.7,23.776884]
[1738183334075,1.0,234.79,234.75,34.20202976]
[1738183334280,1.0,234.88,234.78,23.776884]
[1738183334574,1.0,234.84,234.83,23.776884]
[1738183334777,1.0,234.87,234.83,23.776884]
[1738183335165,5.3193,235.0,234.72,34.20202976]
[1738183335166,1.0,234.91,234.86,23.776884]
[1738183335377,1.0,234.98,234.9,23.776884]
[1738183335683,1.0,234.98,234.87,0.63859194]
[1738183335684,1.0,235.02,234.97,34.20202976]
[1738183335988,2.0,235.05,235.02,23.776884]
[1738183336184,1.0,235.05,234.98,0.63829808]
[1738183336492,1.63875693,235.09,235.04,23.776884]
[1738183336493,1.0,235.07,235.04,23.776884]
[1738183336654,1.0,235.07,234.98,0.63829808]
[1738183336655,2.0,235.04,234.99,34.20202976]
[1738183336853,1.0,235.06,235.02,23.776884]
[1738183337054,1.0,235.08,235.02,24.41504464]
[1738183337258,1.0,235.09,235.06,34.20202976]
[1738183337552,0.063,235.11,235.09,23.776884]
[1738183337670,0.063,235.11,235.07,34.20202976]
[1738183337671,1.0,235.1,235.07,34.20202976]
[1738183337995,1.0,235.0,234.96,0.63806114]
[1738183338171,2.0,234.97,234.91,34.84039062]
[1738183338491,1.0,234.96,234.91,34.84039062]
[1738183338998,2.0,234.93,234.89,34.20202976]
[1738183339157,2.0,234.93,234.8,4.2588]
[1738183339158,1.0,234.96,234.92,23.776884]
[1738183339362,1.0,234.99,234.94,34.20202976]
[1738183339672,0.063,235.11,234.99,23.776884]
[1738183339673,2.0,235.07,234.99,23.776884]
[1738183339869,34.26502976,235.11,235.08,20.0]
[1738183339870,0.063,235.11,235.08,20.0]
[1738183340085,0.063,235.11,235.1,23.776884]
[1738183340590,0.063,235.11,235.0,43.902374]
[1738183340760,1.0,235.07,235.05,34.20202976]
[1738183340965,1.0,235.09,235.03,34.20202976]
[1738183341302,1.0,235.09,235.08,23.776884]
[1738183341606,1.0,235.04,235.01,34.20202976]
[1738183341776,1.0,235.01,234.97,34.8400895]
[1738183341970,2.0,235.0,234.97,0.63805974]
[1738183342175,1.0,234.97,234.93,34.20202976]
[1738183342387,1.0,235.07,234.95,34.20202976]
[1738183342601,1.0,235.07,235.03,23.776884]
[1738183342902,0.063,235.12,235.07,23.776884]
[1738183343107,0.063,235.12,235.1,57.97891376]
[1738183343308,1.063,235.11,235.1,23.776884]
[1738183343479,1.0,235.07,235.04,34.20202976]
[1738183343894,1.063,235.11,235.07,23.776884]
[1738183344380,1.0,235.1,235.04,34.84006552]
[1738183344600,1.0,235.06,235.05,23.776884]
[1738183344797,0.063,235.11,235.05,23.776884]
[1738183345049,1.0,235.1,235.06,34.8400237]
[1738183345196,2.0,235.08,235.04,34.20202976]
[1738183345506,1.0,235.04,234.99,0.63811446]
[1738183345814,2.0,235.02,235.0,34.20202976]
[1738183345977,1.0,234.94,234.83,1.5299]
[1738183346185,2.0,234.89,234.85,0.63850815]
[1738183346387,2.0,234.89,234.78,4.2591]
[1738183346388,36.20202976,234.89,234.8,34.20202976]
[1738183346717,2.0,234.89,234.81,0.63871933]
[1738183346883,36.45300976,234.89,234.76,34.84070497]
[1738183347205,2.25098,234.89,234.82,34.20202976]
[1738183347406,1.0,234.89,234.82,34.20202976]
[1738183347607,1.0,234.93,234.87,34.20202976]
[1738183347906,1.0,234.9,234.89,34.20202976]
[1738183348080,1.0,234.93,234.89,57.97891376]
[1738183348407,1.0,234.93,234.89,58.61737057]
[1738183348591,2.0,234.91,234.9,23.776884]
[1738183349325,2.0,234.91,234.88,23.806884]
[1738183349515,2.0,234.89,234.88,0.03]
[1738183349909,1.0,234.9,234.88,23.806884]
[1738183350116,1.0,234.89,234.88,24.44538649]
[1738183350618,1.0,234.94,234.88,24.44538649]
[1738183350821,1.0,234.92,234.9,34.20202976]
[1738183351122,2.0,234.89,234.88,0.03]
[1738183351719,2.0,234.91,234.88,0.03]
[1738183351918,1.0,234.93,234.88,34.87055787]
[1738183352092,2.0,234.91,234.89,23.776884]
[1738183352288,0.25098,234.96,234.88,0.03]
[1738183352289,2.0,234.89,234.88,0.03]
[1738183352792,2.88973693,234.89,234.88,0.03]
[1738183352993,2.25098,234.89,234.88,0.03]
[1738183353693,1.0,234.93,234.88,23.806884]
[1738183353989,1.0,234.97,234.92,23.776884]
[1738183354197,1.0,234.95,234.92,24.41530094]
[1738183354389,1.0,234.91,234.88,0.03]
[1738183354612,1.0,234.91,234.88,34.23202976]
[1738183354800,1.0,234.95,234.9,57.97891376]
[1738183355022,1.0,234.92,234.88,34.23202976]
[1738183355208,1.0,234.97,234.9,34.20202976]
[1738183355513,1.0,234.97,234.93,23.776884]
[1738183355723,1.0,234.99,234.96,34.20202976]
[1738183356020,1.0,235.04,234.94,4.89466333]
[1738183356021,2.0,235.04,234.99,23.776884]
[1738183356221,34.20202976,235.08,234.93,0.63813487]
[1738183356222,1.0,234.94,234.93,0.63813487]
[1738183356429,2.0,234.94,234.9,0.63839703]
[1738183357024,1.0,234.91,234.88,0.66844068]
[1738183357209,1.0,234.9,234.88,0.66844068]
[1738183357413,2.0,234.9,234.88,0.03]
[1738183358220,1.0,234.76,234.72,1.5798]
[1738183358424,1.0,234.79,234.73,34.20202976]
[1738183358725,1.0,234.79,234.78,23.776884]
[1738183359020,2.0,234.79,234.75,34.20202976]
[1738183359218,2.0,234.77,234.73,34.84078704]
[1738183359411,1.0,234.75,234.73,34.84078704]
[1738183359604,1.0,234.75,234.72,0.63889887]
[1738183359605,1.0,234.73,234.72,0.63889887]
[1738183359808,1.0,234.73,234.65,34.23202976]
[1738183359809,2.0,234.71,234.65,34.23202976]
[1738183360025,2.0,234.71,234.65,34.87113993]
[1738183360208,2.0,234.68,234.65,0.03]
[1738183360529,2.0,234.66,234.65,0.03]
[1738183360706,1.0,234.66,234.65,0.03]
[1738183361216,1.0,234.66,234.65,23.806884]
[1738183361429,1.0,234.69,234.65,58.00891376]
[1738183361627,1.0,234.67,234.65,23.806884]
[1738183361800,2.01522693,234.66,234.65,0.03]
[1738183362316,1.88973693,234.66,234.65,0.03]
[1738183362623,1.0,234.71,234.65,34.48792976]
[1738183362818,1.0,234.71,234.69,34.20202976]
[1738183363016,1.0,234.71,234.7,24.41594361]
[1738183363627,1.0,234.74,234.7,24.41594361]
[1738183363803,1.0,234.74,234.71,34.20202976]
[1738183363998,1.0,234.75,234.67,34.20202976]
[1738183363999,1.0,234.71,234.67,34.20202976]
[1738183364210,1.0,234.73,234.69,34.20202976]
[1738183364619,1.0,234.75,234.67,20.0]
[1738183364620,1.0,234.7,234.67,20.0]
[1738183364833,2.0,234.72,234.67,20.63908405]
[1738183365028,2.0,234.7,234.67,0.63908405]
[1738183365223,2.0,234.66,234.65,0.2859]
[1738183365535,1.0,234.67,234.66,23.776884]
[1738183365707,1.0,234.7,234.67,4.2613]
[1738183365912,1.0,234.7,234.69,23.776884]
[1738183366810,0.25098,234.74,234.67,39.10239657]
[1738183366811,2.0,234.68,234.67,34.84109657]
[1738183367005,1.0,234.68,234.65,5.1865865]
[1738183367236,1.0,234.7,234.68,23.776884]
[1738183367834,1.0,234.69,234.68,23.776884]
[1738183368128,1.0,234.66,234.65,0.2859]
[1738183368612,1.0,234.66,234.65,62.52641376]
[1738183368814,1.0,234.71,234.65,62.52641376]
[1738183369021,2.0,234.74,234.71,23.776884]
[1738183369218,2.0,234.74,234.73,34.20202976]
[1738183369523,2.0,234.74,234.65,15.2016]
[1738183369829,1.0,234.69,234.68,34.20202976]
[1738183370131,1.0,234.81,234.68,34.20202976]
[1738183370132,1.0,234.76,234.72,20.0]
[1738183370316,1.0,234.74,234.73,0.63881685]
[1738183370633,1.0,234.72,234.71,34.20202976]
[1738183370815,2.0,234.72,234.69,34.20202976]
[1738183371010,2.0,234.7,234.69,34.20202976]
[1738183371213,1.0,234.7,234.69,34.20202976]
[1738183371515,2.0,234.7,234.69,23.776884]
[1738183373510,1.0,234.75,234.73,20.0]
[1738183373715,1.0,234.75,234.74,58.61782563]
[1738183374038,1.0,234.81,234.75,23.776884]
[1738183374333,34.20202976,234.88,234.74,0.6387742]
[1738183374334,1.0,234.76,234.74,0.6387742]
[1738183374525,2.0,234.72,234.71,34.20202976]
[1738183374723,2.0,234.72,234.7,0.63900917]
[1738183375119,1.0,234.74,234.71,57.97891376]
[1738183375344,1.0,234.76,234.74,23.776884]
[1738183375515,2.0,234.79,234.75,39.10065729]
[1738183375714,2.0,234.79,234.78,23.776884]
[1738183376116,1.0,234.79,234.78,23.776884]
[1738183376521,1.0,234.83,234.78,23.776884]
[1738183376824,2.0,234.83,234.82,23.776884]
[1738183377518,1.0,234.83,234.82,24.41558348]
[1738183378032,1.0,234.83,234.82,24.41562135]
[1738183378220,2.0,234.83,234.82,23.776884]
[1738183378529,2.0,234.83,234.79,34.20202976]
[1738183378715,1.0,234.82,234.81,34.20202976]
[1738183378920,1.0,234.86,234.82,23.776884]
[1738183379126,1.0,234.86,234.85,57.97891376]
[1738183379321,0.063,234.89,234.86,23.776884]
[1738183379523,0.063,234.89,234.88,82.23631376]
[1738183380137,1.0,235.0,234.89,0.25098]
[1738183380447,1.0,235.0,234.88,97.98001376]
[1738183380448,1.0,235.02,235.0,23.776884]
[1738183380740,0.63875693,235.09,234.99,34.20202976]
[1738183380741,1.0,235.09,235.01,34.84020463]
[1738183380950,1.0,235.09,235.08,57.97891376]
[1738183381248,1.0,235.06,235.05,34.20202976]
[1738183381420,1.0,235.06,235.01,0.63817487]
[1738183381421,1.0,235.02,235.01,0.63817487]
[1738183381610,1.0,235.02,234.94,34.20202976]
[1738183381611,1.0,234.96,234.95,0.63819298]
[1738183381834,1.0,234.96,234.94,34.20202976]
[1738183382139,1.0,234.92,234.86,6.2317]
[1738183382328,2.0,234.97,234.9,20.0]
[1738183382524,2.76595693,235.05,234.86,6.2317]
[1738183382525,1.0,234.93,234.91,23.776884]
[1738183382734,1.0,234.93,234.86,6.2317]
[1738183382914,1.0,235.0,234.9,24.278844]
[1738183383114,1.0,235.05,234.94,23.902374]
[1738183383424,1.0,235.08,235.05,23.776884]
[1738183383611,2.0,235.1,235.07,57.97891376]
[1738183383813,0.063,235.11,235.09,57.97891376]
[1738183384115,2.063,235.11,235.1,23.776884]
[1738183384315,1.0,235.03,235.01,0.63795851]
[1738183384639,2.0,234.99,234.96,34.20202976]
[1738183384938,2.0,234.95,234.94,34.20202976]
[1738183385115,1.0,234.95,234.94,34.20202976]
[1738183385310,0.63875693,235.02,234.9,34.20202976]
[1738183385311,1.0,234.91,234.9,34.20202976]
[1738183385516,34.20202976,234.99,234.9,34.20202976]
[1738183385517,1.0,234.96,234.91,23.776884]
[1738183385738,1.0,234.96,234.95,23.776884]
[1738183385926,1.0,234.93,234.92,34.20202976]
[1738183386234,1.0,234.94,234.93,23.776884]
[1738183386434,1.0,235.04,235.01,23.776884]
[1738183386647,2.0,235.04,235.03,57.97891376]
[1738183386832,2.0,235.0,234.99,34.20202976]
[1738183387150,1.0,234.95,234.93,0.63812041]
[1738183387317,2.0,234.92,234.88,0.63831108]
[1738183387526,2.0,234.9,234.89,34.20202976]
[1738183387719,2.0,234.85,234.84,0.63852048]
[1738183387937,2.0,234.85,234.84,34.20202976]
[1738183388438,1.0,234.82,234.81,0.63862593]
[1738183388839,2.0,234.79,234.77,0.63869955]
[1738183389014,1.0,234.79,234.77,34.84072931]
[1738183389220,1.0,234.76,234.75,34.20202976]
[1738183389625,0.12549,234.88,234.75,34.20202976]
[1738183389626,1.0,234.81,234.75,34.20202976]
[1738183389831,1.0,234.86,234.83,20.0]
[1738183390166,1.0,234.9,234.86,23.776884]
[1738183390441,1.0,234.9,234.89,57.97891376]
[1738183390641,2.0,234.9,234.89,58.61725694]
[1738183390848,1.0,234.9,234.89,57.97891376]
[1738183391045,1.0,234.93,234.89,34.20202976]
[1738183391253,1.0,234.93,234.85,0.63842357]
[1738183391254,2.0,234.91,234.9,23.776884]
[1738183391540,1.0,234.91,234.9,58.61745537]
[1738183392319,2.0,234.91,234.9,23.776884]
[1738183392578,2.0,234.91,234.9,58.6174656]
[1738183392842,1.0,234.87,234.86,34.20202976]
[1738183393064,2.0,234.85,234.84,34.20202976]
[1738183393244,2.0,234.85,234.84,58.61752017]
[1738183393541,1.0,234.85,234.84,58.61752017]
[1738183393968,1.0,234.92,234.87,20.0]
[1738183394146,1.0,234.92,234.91,34.20202976]
[1738183394454,1.0,234.92,234.91,57.97891376]
[1738183394651,1.0,234.96,234.92,23.776884]
[1738183394853,1.0,234.87,234.86,0.6383234]
[1738183395059,1.0,234.8,234.79,34.20202976]
[1738183395246,1.0,234.81,234.79,34.20202976]
[1738183395447,1.0,234.81,234.8,0.63873637]
[1738183395759,1.0,234.73,234.72,34.20202976]
[1738183396157,1.0,234.73,234.72,57.97891376]
[1738183396355,2.0,234.78,234.75,20.0]
[1738183396534,1.0,234.82,234.8,23.776884]
[1738183396736,1.0,234.84,234.83,43.776884]
[1738183396957,1.0,234.84,234.83,58.61755902]
[1738183397157,1.0,234.84,234.83,57.97891376]
[1738183397343,1.0,234.86,234.84,23.776884]
[1738183397544,2.0,234.86,234.85,58.6174917]
[1738183397736,2.0,234.86,234.85,57.97891376]
[1738183397935,2.0,234.82,234.8,0.2559]
[1738183398138,1.0,234.84,234.83,20.0]
[1738183398339,1.0,234.93,234.87,20.0]
[1738183398546,1.0,234.93,234.92,20.0]
[1738183398750,1.0,234.95,234.93,23.776884]
[1738183398962,1.0,234.97,234.95,23.776884]
[1738183399163,1.0,234.97,234.96,23.776884]
[1738183399465,0.063,235.01,234.92,34.20202976]
[1738183399466,1.0,234.93,234.92,34.20202976]
[1738183399675,1.0,234.85,234.84,34.84047863]
[1738183399842,0.12549,234.95,234.8,0.2559]
[1738183399843,1.0,234.81,234.8,0.2559]
[1738183401558,35.57849976,234.81,234.8,0.2559]
[1738183401758,36.21725669,234.81,234.8,0.2559]
[1738183403851,37.21725669,234.81,234.8,0.2559]
[1738183404075,36.21725669,234.81,234.8,0.2559]
[1738183404251,1.0,234.81,234.8,0.2559]
[1738183404945,1.0,234.81,234.8,24.032784]
[1738183405144,1.0,234.84,234.81,4.2587]
[1738183405470,7.3195,234.99,234.88,23.776884]
[1738183405471,1.0,234.89,234.88,23.776884]
[1738183405639,1.0,234.91,234.77,11.77398]
[1738183405845,1.0,234.91,234.81,14.9056]
[1738183406068,1.0,234.91,234.86,23.776884]
[1738183406264,0.063,234.93,234.9,57.97891376]
[1738183406468,1.0,234.96,234.95,20.0]
[1738183406778,1.0,234.96,234.86,0.12549]
[1738183406779,1.0,234.89,234.77,11.523]
[1738183407071,34.20202976,234.98,234.84,20.0]
[1738183407072,1.0,234.86,234.84,20.0]
[1738183407596,1.0,234.85,234.84,43.776884]
[1738183407745,1.0,234.88,234.87,48.034484]
[1738183407945,2.0,234.93,234.88,23.776884]
[1738183408169,1.0,234.95,234.92,57.97891376]
[1738183408371,1.0,234.95,234.94,57.97891376]
[1738183408372,2.0,234.95,234.94,57.97891376]
[1738183408748,1.0,234.97,234.95,23.776884]
[1738183409271,1.0,234.97,234.96,57.97891376]
[1738183409463,1.0,234.99,234.97,23.776884]
[1738183409659,1.0,234.99,234.98,24.41511964]
[1738183409888,1.0,235.02,234.99,28.032384]
[1738183410089,1.0,235.02,235.0,58.61700928]
[1738183410395,1.063,235.11,235.08,20.0]
[1738183410559,1.0,235.16,235.11,0.063]
[1738183410759,0.063,235.17,235.13,23.839884]
[1738183411097,1.063,235.23,235.22,20.0]
[1738183411296,0.063,235.23,235.22,57.97891376]
[1738183411885,0.063,235.23,235.22,62.23021376]
[1738183412055,1.937,235.21,235.17,0.63754124]
[1738183412258,1.937,235.15,235.13,5.1]
[1738183412458,1.937,235.15,235.13,0.63783889]
[1738183412658,1.0,235.09,235.08,34.20202976]
[1738183412967,1.0,235.11,235.08,34.20202976]
[1738183413162,1.0,235.13,235.11,23.776884]
[1738183413389,1.0,235.19,235.18,20.0]
[1738183413587,0.063,235.23,235.19,23.776884]
[1738183413893,1.0,235.22,235.21,54.20202976]
[1738183414099,0.063,235.23,235.22,23.776884]
[1738183414269,0.063,235.23,235.22,24.41433743]
[1738183414461,0.063,235.23,235.22,28.66563743]
[1738183414874,1.937,235.28,235.26,23.776884]
[1738183415076,0.063,235.34,235.28,23.776884]
[1738183415275,0.063,235.34,235.32,23.776884]
[1738183415559,0.063,235.34,235.33,23.776884]
[1738183415964,0.937,235.32,235.29,34.20202976]
[1738183416166,0.063,235.34,235.27,34.20202976]
[1738183416167,0.937,235.28,235.27,34.20202976]
[1738183416423,0.937,235.28,235.27,23.776884]
[1738183416919,0.937,235.3,235.28,23.776884]
[1738183417079,0.063,235.34,235.31,23.776884]
[1738183417080,0.937,235.32,235.31,23.776884]
[1738183417273,1.0,235.34,235.31,34.20202976]
[1738183417481,0.937,235.28,235.25,34.20202976]
[1738183417680,0.937,235.28,235.23,24.251]
[1738183417681,0.937,235.24,235.23,34.20202976]
[1738183417896,0.937,235.24,235.21,34.20202976]
[1738183418105,0.937,235.27,235.23,34.20202976]
[1738183418400,0.937,235.29,235.27,23.776884]
[1738183418602,0.937,235.31,235.28,57.97891376]
[1738183419005,0.937,235.29,235.28,57.97891376]
[1738183419387,0.937,235.33,235.29,23.776884]
[1738183419585,0.063,235.34,235.33,23.776884]
[1738183419887,1.0,235.34,235.29,0.63721961]
[1738183420087,0.937,235.3,235.28,38.45212976]
[1738183420386,0.937,235.3,235.29,24.41427076]
[1738183421304,0.937,235.3,235.29,23.776884]
[1738183421681,0.937,235.27,235.22,4.2511]
[1738183422015,0.937,235.21,235.2,34.20202976]
[1738183422186,0.937,235.17,235.16,34.20202976]
[1738183422878,0.937,235.13,235.12,34.20202976]
[1738183423111,0.937,235.16,235.12,34.20202976]
[1738183423292,7.4372,235.3,235.15,77.97891376]
[1738183423293,0.937,235.18,235.15,77.97891376]
[1738183423488,0.937,235.2,235.17,62.23111376]
[1738183423688,0.937,235.2,235.19,57.97891376]
[1738183423895,0.937,235.2,235.19,58.61654726]
[1738183424094,6.1427,235.33,235.22,20.0]
[1738183424287,34.20202976,235.3,235.22,34.20202976]
[1738183424494,34.20202976,235.3,235.09,26.3684]
[1738183424495,0.63875693,235.29,235.2,34.20202976]
[1738183424689,0.63875693,235.29,235.22,57.97891376]
[1738183424894,6.26819,235.33,235.25,23.776884]
[1738183425100,34.45300976,235.32,235.22,34.20202976]
[1738183425314,34.45300976,235.32,235.13,1.01398356]
[1738183425315,34.20202976,235.3,235.2,34.20202976]
[1738183425610,0.63875693,235.29,235.21,0.63761804]
[1738183425826,0.63875693,235.29,235.13,2.08841327]
[1738183425827,34.20202976,235.26,235.16,34.8396397]
[1738183426014,34.20202976,235.28,235.19,23.776884]
[1738183426188,0.63875693,235.29,235.2,34.83964621]
[1738183426388,35.09176669,235.32,235.22,34.20202976]
[1738183426610,0.063,235.34,235.28,23.776884]
[1738183426913,34.20202976,235.32,235.23,34.20202976]
[1738183427122,34.20202976,235.32,235.25,0.63743068]
[1738183427698,34.20202976,235.32,235.16,5.95850359]
[1738183427699,0.063,235.34,235.29,34.20202976]
[1738183427908,0.063,235.34,235.32,23.776884]
[1738183428307,0.25098,235.3,235.21,0.63738082]
[1738183428489,34.20202976,235.25,235.16,34.20202976]
[1738183428695,0.88973693,235.24,235.09,0.63770971]
[1738183428896,34.20202976,235.25,235.16,34.20202976]
[1738183429198,34.20202976,235.21,235.12,34.20202976]
[1738183429406,0.63875693,235.24,235.1,34.20202976]
[1738183429407,34.20202976,235.19,235.1,34.20202976]
[1738183429605,2.1258,235.2,235.13,23.776884]
[1738183429803,2.1258,235.2,235.15,23.776884]
[1738183430006,34.20202976,235.25,235.17,23.776884]
[1738183430206,2.1253,235.26,235.18,34.83974091]
[1738183430494,2.1253,235.26,235.21,23.776884]
[1738183430690,34.20202976,235.22,235.1,0.63764654]
[1738183430906,34.20202976,235.18,235.1,0.63764654]
[1738183431108,0.63875693,235.17,235.1,0.63764654]
[1738183431295,0.63875693,235.17,235.11,23.776884]
[1738183431715,2.1262,235.16,235.08,34.23202976]
[1738183431908,2.1262,235.16,235.09,0.63795954]
[1738183432098,34.20202976,235.2,235.11,23.776884]
[1738183432301,34.20202976,235.18,235.08,34.23202976]
[1738183432531,34.20202976,235.18,235.08,0.03]
[1738183432532,34.20202976,235.16,235.08,0.03]
[1738183432695,1.0,235.18,235.08,34.23202976]
[1738183432696,34.20202976,235.18,235.08,34.23202976]
[1738183432896,0.63875693,235.17,235.09,23.776884]
[1738183433101,34.20202976,235.16,235.09,23.776884]
[1738183433426,0.63875693,235.16,235.09,23.776884]
[1738183433611,34.84078669,235.16,235.09,23.776884]
[1738183433812,0.25098,235.12,235.08,0.03]
[1738183434131,34.20202976,235.1,235.08,0.03]
[1738183434302,0.88973693,235.09,235.08,0.03]
[1738183434800,0.63875693,235.09,235.08,0.03]
[1738183435107,34.84078669,235.12,235.08,0.03]
[1738183435313,34.20202976,235.1,235.08,0.03]
[1738183435623,0.63875693,235.09,235.08,0.03]
[1738183435827,2.76555693,235.09,235.08,0.03]
[1738183436421,4.14202693,235.09,235.08,0.03]
[1738183436918,5.14202693,235.09,235.08,0.0001]
[1738183437127,0.25098,235.0,234.96,0.03]
[1738183437300,34.84078669,234.99,234.96,0.03]
[1738183437493,34.20202976,234.97,234.85,0.66845245]
[1738183437718,34.20202976,234.87,234.85,0.03]
[1738183438020,36.33072976,234.89,234.85,0.03]
[1738183438211,34.84078669,234.93,234.85,0.03]
[1738183438427,34.20202976,234.91,234.85,0.03]
[1738183438603,34.20202976,234.89,234.85,0.03]
[1738183438926,36.96898669,234.93,234.85,0.03]
[1738183440422,34.20202976,234.89,234.85,0.03]
[1738183440720,34.20202976,235.03,234.91,43.776884]
[1738183440926,0.63875693,235.03,234.96,23.776884]
[1738183441125,34.84078669,235.05,234.98,23.776884]
[1738183441422,34.20202976,235.11,235.01,34.20202976]